Cogmind - Beta 13 @@@ ROGUE MODE // 2024.07.05 @ 00:21:36 Player: Azormik Result: Destroyed by G-47 Trooper with Particle Gun Performance ------------- Evolutions (2) 1000 Regions Visited (5) 1000 Robots Destroyed (29) 145 Value Destroyed (633) 633 Prototype IDs (3) 60 Alien Tech Used (0) 0 Bonus (401) 401 TOTAL SCORE: 3239 Bonus ------- Follower Combat Kills 101 Aligned with FarCom 300 Cogmind --------- Core Integrity 0/550 Matter 400/400 Energy 99/100 System Corruption 0% Temperature Cool (9) Movement Core (250) Ox4 Location -8/Materials Parts ------- > --- POWER (2) -------- (None) > --- PROPULSION (3) --- (None) > --- UTILITY (4) ------ Small Storage Unit Medium Matter Pod > --- WEAPON (2) ------- Heavy Hammer Great Maul > --- INVENTORY (8) ---- Nuclear Core Faulty Cooled Pulse Rifle Datajack Peak State ------------ > --- POWER ------------ Light Nuclear Core Light Nuclear Core > --- PROPULSION ------- Wheel Compact Wheel Compact Wheel > --- UTILITY ---------- Small Storage Unit Seismic Detector Hardened Heavy Armor Plating > --- WEAPON ----------- EM Pulse Cannon Great Maul > --- INVENTORY -------- Light Ion Engine Heat Sink Medium Matter Pod Cooled Pulse Rifle Light Cannon Datajack Heavy Hammer [Rating: 26] Favorites ----------- Power Light Ion Engine Engine Light Ion Engine Power Core Light Nuclear Core Propulsion Compact Wheel Leg Aluminum Leg Wheel Compact Wheel Utility Small Storage Unit Device Seismic Detector Storage Small Storage Unit Processor Improved Targeting Computer Protection Light Armor Plating Weapon Light Cannon Energy Gun EM Pulse Gun Energy Cannon EM Pulse Cannon Ballistic Cannon Light Cannon Special Weapon Welding Torch Impact Weapon Heavy Hammer Build | -11 -10 -10 -10 -9 -8 ------- Run | Yrd Mat Min Exi Min Mat Slots Evolved 4 | . . . . . 4 Power 1 | . . . . . 1 Propulsion 1 | . . . . . 1 Utility 2 | . . . . . 2 Weapon . | . . . . . . Parts Attached 36 | 11 5 1 . . 19 Power 11 | 3 . . . . 8 Engine 7 | 3 . . . . 4 Core 4 | . . . . . 4 Reactor . | . . . . . . Propulsion 5 | 3 . 1 . . 1 Treads . | . . . . . . Leg 1 | 1 . . . . . Wheel 4 | 2 . 1 . . 1 Hover . | . . . . . . Flight . | . . . . . . Utility 9 | 2 2 . . . 5 Device 3 | 1 . . . . 2 Storage 2 | 1 . . . . 1 Processor 1 | . 1 . . . . Hackware . | . . . . . . Protection 3 | . 1 . . . 2 Artifact . | . . . . . . Weapon 11 | 3 3 . . . 5 Energy Gun 4 | 3 . . . . 1 Energy Cannon 1 | . . . . . 1 Ballistic Gun . | . . . . . . Ballistic Cannon 2 | . 1 . . . 1 Launcher . | . . . . . . Special Weapon 1 | . 1 . . . . Impact Weapon 3 | . 1 . . . 2 Slashing Weapon . | . . . . . . Piercing Weapon . | . . . . . . Special Melee Weapon . | . . . . . . Unidentified Prototypes 1 | . . . . . 1 Parts Lost 13 | . 2 . . . 11 Power 4 | . . . . . 4 Propulsion 3 | . . . . . 3 Utility 4 | . 1 . . . 3 Weapon 2 | . 1 . . . 1 Highest Loss Streak 8 | . 1 . . . 8 To Critical Strikes 1 | . 1 . . . . Average Slot Usage (%) 93 | . 93 100 100 100 84 Engine 13 | . 14 14 14 14 13 Wheel 25 | . 28 28 28 28 22 Device 3 | . . . . . 9 Storage 12 | . 14 14 14 14 9 Protection 11 | . 6 14 14 14 10 Energy Gun 1 | . 9 . . . . Ballistic Cannon 9 | . . 14 14 14 7 Impact Weapon 12 | . 11 14 14 14 9 Naked Turns . | . . . . . . Heaviest Build 46 | 12 17 17 17 17 46 Greatest Support 42 | 32 32 26 26 26 42 Greatest Overweight (x) 6 | 1 . . . . 6 Average Overweight (x) . | . . . . . . Largest Inventory Capacity 8 | 8 8 8 8 8 8 Average Capacity 7 | 7 8 8 8 8 8 Most Carried 8 | 4 8 8 8 8 8 Average Carried 6 | 2 6 8 8 8 6 Final Capacity 8 | 8 8 8 8 8 8 Final Carried 8 | 4 8 8 8 8 3 Class Distribution -------------------- 100% | Mutant Dominant Class ---------------- Mutant | -10/Materials Mutant | -10/Mines Mutant | -10/Exiles Mutant | -9/Mines Mutant | -8/Materials Resources | -11 -10 -10 -10 -9 -8 ----------- Run | Yrd Mat Min Exi Min Mat Matter Collected 681 | 302 143 20 . . 216 Remotely . | . . . . . . Salvage Created 763 | 38 161 42 . . 522 Parts 36 | 6 6 3 . . 21 Haulers Intercepted 1 | . . . . . 1 Recyclers Shooed . | . . . . . . Parts Field Recycled . | . . . . . . Retrieved Matter . | . . . . . . Parts Self-Destructed . | . . . . . . Prevented . | . . . . . . Kills | -11 -10 -10 -10 -9 -8 ------- Run | Yrd Mat Min Exi Min Mat Combat Hostiles Destroyed 14 | . 5 . . . 9 Melee 7 | . 1 . . . 6 Guns 1 | . 1 . . . . Classes Destroyed 10 | 2 3 . . . 5 Worker 4 | 1 . 2 . . 1 Builder 4 | . . . . . 4 Tunneler 3 | 1 . 1 . . 1 Hauler 1 | . . . . . 1 Operator 1 | . . . . . 1 Watcher 2 | . 1 . . . 1 Swarmer 4 | . 3 . . . 1 Grunt 8 | . 2 . . . 6 Sentry 1 | . . . . . 1 Heavy 1 | . . . . . 1 Best Kill Streak 3 | 1 3 2 . . 2 Combat Bots Only 3 | . 3 . . . 2 Max Kills in Single Turn 1 | 1 1 1 . . 1 Gunslinging . | . . . . . . Exploded . | . . . . . . Melee 1 | . 1 . . . 1 Uniques/NPCs Destroyed . | . . . . . . Combat | -11 -10 -10 -10 -9 -8 -------- Run | Yrd Mat Min Exi Min Mat Hostile Shots Fired 134 | . 24 . . . 110 Missed 29 | . 7 . . . 22 Damage Taken 1967 | . 200 . . . 1767 Core 596 | . 43 . . . 553 Absorbed by Shields . | . . . . . . Core Remaining (%) 91 | 100 . . . 82 . Volleys Fired 25 | 7 8 . . . 10 Largest 2 | 2 1 . . . 1 Hottest 80 | 80 40 . . . 63 Shots Fired 32 | 14 8 . . . 10 Gun 22 | 14 8 . . . . Cannon 10 | . . . . . 10 Launcher . | . . . . . . Special . | . . . . . . Kinetic 7 | . . . . . 7 Thermal 7 | 7 . . . . . Explosive . | . . . . . . Electromagnetic 18 | 7 8 . . . 3 Robot Hit Streak 7 | 3 7 . . . 5 Robot Miss Streak 4 | 4 1 . . . 1 Penetration Max . | . . . . . . Secondary Targets . | . . . . . . Shots Hit Robots 73 | 6 16 3 . . 48 Core Hits 11 | 2 3 1 . . 5 Critical Kills 3 | . . . . . 3 Critical Parts Destroyed 10 | . 2 1 . . 7 Critical Strikes 13 | . 2 1 . . 10 Smash 13 | . 2 1 . . 10 Melee Attacks 70 | . 14 3 . . 53 Impact 70 | . 14 3 . . 53 Slashing . | . . . . . . Piercing . | . . . . . . Sneak Attacks 13 | . . 2 . . 11 Combat Hostiles 2 | . . . . . 2 Follow-up Attacks 3 | . . . . . 3 Damage Inflicted 3010 | 74 409 199 . . 2328 Guns 168 | 74 94 . . . . Cannons 150 | . . . . . 150 Explosions . | . . . . . . Melee 2692 | . 315 199 . . 2178 Ramming . | . . . . . . Kinetic 107 | . . . . . 107 Thermal 34 | 34 . . . . . Explosive . | . . . . . . Electromagnetic 177 | 40 94 . . . 43 Impact 2692 | . 315 199 . . 2178 Slashing . | . . . . . . Piercing . | . . . . . . Highest Corruption 1 | . 1 1 1 1 . Average Corruption 1 | . 1 1 1 1 . Corruption Purged . | . . . . . . Corruption Blocked . | . . . . . . Effects 12 | . . 2 10 . . Message Errors 3 | . . . 3 . . Matter Fused 3 | . . . 3 . . Energy Discharges 1 | . . . 1 . . Data Loss (minor) 3 | . . 1 2 . . Data Loss (major) 1 | . . . 1 . . Alerts 1 | . . 1 . . . Overload Shots . | . . . . . . Overflow Damage 1088 | . 97 65 . . 926 Projectiles 20 | . . . . . 20 Explosions . | . . . . . . Melee 1068 | . 97 65 . . 906 Knockbacks 10 | . 2 . . . 8 Impact 10 | . 2 . . . 8 Kinetic . | . . . . . . Secondary . | . . . . . . Self-Inflicted Damage . | . . . . . . Shots . | . . . . . . Rammed . | . . . . . . Targets Rammed . | . . . . . . Kicked . | . . . . . . Crushed . | . . . . . . Highest Temperature 298 | 56 54 . . . 298 Average Temperature 59 | 22 32 . . . 84 Received Heat Transfer 501 | . 60 . . . 441 Siege Activations . | . . . . . . Robots Corrupted 1 | . . . . . 1 Combat Hostiles 1 | . . . . . 1 Parts Fried 21 | . . 2 . . 19 Impact Corruptions 41 | . 6 4 . . 31 Robots Melted . | . . . . . . Combat Hostiles . | . . . . . . Parts Melted . | . . . . . . Heat Transferred 75 | 75 . . . . . Parts Sabotaged . | . . . . . . Parts Stolen . | . . . . . . Parts Stripped . | . . . . . . Power Chain Reactions . | . . . . . . Alert | -11 -10 -10 -10 -9 -8 ------- Run | Yrd Mat Min Exi Min Mat Peak Influence 326 | 10 162 78 . . 326 Initial 63 | . 6 63 . . . Average 87 | 2 90 74 . . 116 Maximum Alert Level 1 | . . . . . 1 Low Security (%) 83 | 100 100 100 . 100 69 Level 1 16 | . . . . . 30 Level 2 . | . . . . . . Level 3 . | . . . . . . Level 4 . | . . . . . . Level 5 . | . . . . . . High Security . | . . . . . . Max Security . | . . . . . . Squads Dispatched 3 | . . . . . 3 Investigation . | . . . . . . Extermination . | . . . . . . Reinforcement 3 | . . . . . 3 Assault . | . . . . . . Garrison . | . . . . . . Intercept . | . . . . . . Searches Triggered . | . . . . . . Construction Impeded 1 | . . . . . 1 Haulers Reinforced . | . . . . . . Active Scanning Responses . | . . . . . . Cargo Convoy Interrupts . | . . . . . . Stealth | -11 -10 -10 -10 -9 -8 --------- Run | Yrd Mat Min Exi Min Mat Distress Signals 2 | . 1 . . . 1 Communications Jammed . | . . . . . . Distress Signals . | . . . . . . Times Spotted 34 | . 11 . . . 23 Peak Tracking Total 5 | . 4 . . . 5 Tactical Retreats 4 | . 1 . . . 3 Traps | -11 -10 -10 -10 -9 -8 ------- Run | Yrd Mat Min Exi Min Mat Traps Triggered 1 | . 1 . . . . Indirectly . | . . . . . . Trap Hack Attempts . | . . . . . . Triggered . | . . . . . . Disarmed . | . . . . . . Reprogrammed . | . . . . . . Reused . | . . . . . . Traps Extracted . | . . . . . . Installed . | . . . . . . Triggered . | . . . . . . Machines | -11 -10 -10 -10 -9 -8 ---------- Run | Yrd Mat Min Exi Min Mat Machines Disabled 2 | . . . . . 2 Max in Single Turn 1 | . . . . . 1 Machines Repaired . | . . . . . . Machines Dismantled . | . . . . . . Machines Sabotaged . | . . . . . . Overloaded Fab Kills . | . . . . . . Hacking | -11 -10 -10 -10 -9 -8 --------- Run | Yrd Mat Min Exi Min Mat Machines Accessed 7 | . 2 . 3 . 2 Terminals 2 | . 1 . . . 1 Fabricators . | . . . . . . Repair Stations 1 | . 1 . . . . Recycling Units 1 | . . . . . 1 Scanalyzers . | . . . . . . Garrison Access . | . . . . . . Total Hacks 27 | . 3 . 21 . 3 Successful 22 | . . . 21 . 1 Failed 5 | . 3 . . . 2 Catastrophic . | . . . . . . Database Lockouts . | . . . . . . Manual 2 | . . . 2 . . Terminals 3 | . 1 . . . 2 Fabricators . | . . . . . . Repair Stations 2 | . 2 . . . . Recycling Units 1 | . . . . . 1 Scanalyzers . | . . . . . . Garrison Access . | . . . . . . Terminal Hacks 22 | . . . 21 . 1 Record 21 | . . . 21 . . Prototype ID Bank 1 | . . . . . 1 Fabricator Hacks . | . . . . . . Repair Station Hacks . | . . . . . . Recycling Unit Hacks . | . . . . . . Scanalyzer . | . . . . . . Garrison Access Hacks . | . . . . . . Unauthorized Hacks . | . . . . . . Terminals . | . . . . . . Fabricators . | . . . . . . Repair Stations . | . . . . . . Recycling Units . | . . . . . . Scanalyzers . | . . . . . . Garrison Access . | . . . . . . Data Cores Recovered . | . . . . . . Used . | . . . . . . Hacking Detections 3 | . 2 . . . 1 Full Trace Events . | . . . . . . Feedback Events . | . . . . . . Feedback Blocked . | . . . . . . Robot Schematics Acquired . | . . . . . . Robots Built . | . . . . . . Authchips . | . . . . . . Time . | . . . . . . Total Robot Build Rating . | . . . . . . Part Schematics Acquired . | . . . . . . Parts Built . | . . . . . . Authchips . | . . . . . . Time . | . . . . . . Total Part Build Rating . | . . . . . . Parts Repaired . | . . . . . . Time . | . . . . . . Parts Recycled . | . . . . . . Recycled Matter . | . . . . . . Retrieved Matter . | . . . . . . Retrieved Components . | . . . . . . Parts Scanalyzed . | . . . . . . Part Schematics Acquired . | . . . . . . Parts Damaged . | . . . . . . Bothacking | -11 -10 -10 -10 -9 -8 ------------ Run | Yrd Mat Min Exi Min Mat Used RIF Installer . | . . . . . . Robots Hacked . | . . . . . . Non-combat . | . . . . . . Combat . | . . . . . . Robot Hacks Applied . | . . . . . . Relay Couplers Released . | . . . . . . Fabnet Peak Effective % . | . . . . . . Robots Rewired . | . . . . . . Allies Hacked . | . . . . . . Hacks Repelled . | . . . . . . Allies | -11 -10 -10 -10 -9 -8 -------- Run | Yrd Mat Min Exi Min Mat Total Allies 3 | . . . . 3 . Largest Group 3 | . . . . 3 3 Highest-Rated Group 40 | . . . . 40 40 Highest-Rated Ally 16 | . . . . 16 16 Total Orders 1 | . . . . 1 . FOLLOW 1 | . . . . 1 . Ally Attacks 30 | . . . . . 30 Total Damage 309 | . . . . . 309 Kills 5 | . . . . . 5 Allies Corrupted . | . . . . . . Allies Melted . | . . . . . . Intel | -11 -10 -10 -10 -9 -8 ------- Run | Yrd Mat Min Exi Min Mat Robot Analysis Total . | . . . . . . Derelict Logs Recovered . | . . . . . . Drone Launches . | . . . . . . Drone Recoveries . | . . . . . . Exploration | -11 -10 -10 -10 -9 -8 ------------- Run | Yrd Mat Min Exi Min Mat Turns Passed 2546 | 265 307 125 951 27 871 Spaces Moved 2218 | 231 228 128 1051 30 550 Core 80 | 65 . . . . 15 Treads . | . . . . . . Legs . | . . . . . . Wheels 2138 | 166 228 128 1051 30 535 Hover . | . . . . . . Flight . | . . . . . . Fastest Speed 50 | 50 100 90 90 90 93 Average Speed 93 | 89 100 90 90 90 101 Slowest Speed 350 | 100 100 90 90 90 350 Overloaded Moves . | . . . . . . Propulsion Burnouts . | . . . . . . Robots Hopped . | . . . . . . Cave-ins Triggered . | . . . . . . Exploration Rate (%) 34 | 11 40 19 92 10 34 Regions Visited 5 Branch Regions 3 Pre-discovered Areas 1 | . . . 1 . . Known Exits Taken . | . . . . . . Unknown Exits Taken 5 | 1 1 1 1 1 . Scrap Searched . | . . . . . . Spaces Dug . | . . . . . . Terrain Destroyed . | . . . . . . Melee . | . . . . . . Projectile . | . . . . . . AOE . | . . . . . . Terrain Rammed . | . . . . . . Walls Destroyed . | . . . . . . Machines Disabled . | . . . . . . Actions | -11 -10 -10 -10 -9 -8 --------- Run | Yrd Mat Min Exi Min Mat Total 2524 | 276 273 131 1055 29 760 Wait 140 | 12 12 . 2 . 114 Move 2213 | 230 227 127 1050 29 550 Hop . | . . . . . . Pick Up 21 | 9 5 . . . 7 Fast Attach 12 | 5 2 . . . 5 Attach 18 | 6 1 . . . 11 Detach 7 | 4 1 . . . 2 Swap 6 | . 2 1 . . 3 Drop 13 | 3 1 . . . 9 Fire 25 | 7 8 . . . 10 Melee 66 | . 14 3 . . 49 Ram . | . . . . . . Kick . | . . . . . . Crush . | . . . . . . Escape Stasis . | . . . . . . Rewire 3 | . . . 3 . . Trap . | . . . . . . Miscellaneous . | . . . . . . Route ------- -11/Scrapyard -10/Materials -10/Mines -10/Exiles (discovered 2 exits: [*Min x2]) -9/Mines -8/Materials History --------- Turn | Location | Event 26 | -11/Scrapyard | Discovered new exit (range 12) 266 | -11/Scrapyard | Entered Materials 338 | -10/Materials | Build established: Mutant 540 | -10/Materials | Discovered new exit (range 7) 573 | -10/Materials | Entered Mines 625 | -10/Mines | Deemed a non-threat by the Exiles lab entrance 626 | -10/Mines | Discovered new exit (range 5) 666 | -10/Mines | Found a hidden stash of uninstalled traps 679 | -10/Mines | Assembled infested the area 698 | -10/Mines | Entered Exiles 717 | -10/Exiles | Discovered new exit (range 15) 728 | -10/Exiles | Met 8R-AWN 751 | -10/Exiles | Met EX-HEX 847 | -10/Exiles | Met EX-DEC 894 | -10/Exiles | Met EX-BIN 909 | -10/Exiles | Aligned with FarCom system 910 | -10/Exiles | Given EX-Vault access code 1024 | -10/Exiles | Learned location of Zion (-6) 1095 | -10/Exiles | Visited The Gauntlet 1249 | -10/Exiles | Discovered new exit (range 14) 1649 | -10/Exiles | Entered Mines 1659 | -9/Mines | Assisted by bots powering up and referring to "LRC-V3" 1670 | -9/Mines | Discovered new exit (range 7) 1676 | -9/Mines | Entered Materials 1676 | -8/Materials | Accompanied by 3 allies 1676 | -8/Materials | Evolved 4 slots: Power x1, Propulsion x1, Utility x2 2433 | -8/Materials | Core integrity fell below 50% 2461 | -8/Materials | Lost 8 parts (3p3n1u1w) 2526 | -8/Materials | Core integrity fell below 20% 2547 | -8/Materials | Destroyed by G-47 Trooper with Particle Gun Last Messages --------------- G-47 Trooper destroyed. Acquired 4 matter. W-25 Informer sends out distress signal. Seismic Detector destroyed. Lgt. Ion Engine destroyed. R-06 Scavenger collects Imp. Ion Engine. Destroyed Imp. Heat Sink. G-47 Trooper system corrupted by crushing effect. G-47 Trooper knocked back. Hvy. Hammer follow-up attack on G-47 Trooper. G-47 Trooper knocked back. Heat Sink destroyed. G-47 Trooper IFF system glitched. R-06 Scavenger collects Corrupted Heat Sink. Destroyed Flight Unit. S-10 Pest system corrupted by crushing effect. S-10 Pest system terminally corrupted. Lgt. Ion Engine fried. Lgt. Assault Rifle fried. Map ----- +----------------------------------------------------+ | | | | | | | | | | | ######???????????????????????????????????????????? | | #???????????????????????????????????????????? | | ""#??????##########???????????????????????????? | | ] Y"#??????# ! ] ! #???????????????????????????? | | ! ""######## #???????????????????????????? | | ] + + """ ????????????????????????????? | | # # = """""#???????????????????????????? | | ###### # """""#???????????????????????????? | | / """""#???????????????????????????? | | ## """ #???????????????????????????? | | """ " " ## [% #?##????????????????????????? | | """ """ ## =*% #?##########????????????????? | | """ """ !######+###### #????????????????? | | !%##### % T + #????????????????? | | =* # #????????????????? | | """ """ !% #ss* #????????????????? | | """ """ [! #!! #????????????????? | | """ """ ! #!!% !#????????????????? | | % w#= % ! #????????????????? | | % r g% #????????????????? | | #+## #######/########%@%%= % #????????????????? | | #?##### #########+#########????????????? | | ####### """"" # %% ?????? | | + # """"" + % ?????? | | ####### """"" # % ?????? | | #?????# ### ################## ??????? | | #?????#+##########+###????????????????????????? | | #?????# #?# #??????????????????????????? | | #?????# #?#""" #??????????????????????????? | | #?????# ###""" #??????????????????????????? | | ####### #""" #??????????????????????????? | | + + *=! #??????????????????????????? | | ####### # *=%"""#??????????????????????????? | | ####?????# # !** "#??????????????????????????? | | ???####### # """#??????????????????????????? | | ???""" # # #??????????????????????????? | | ??""""" # ###/########????????????????????????? | | ??""""" # ???????????????????????? | | """"" # ???????????????????????? | | """ # ???????????????????????? | | / ##########+#????????????????????????? | | ! * # #???????????????????????????????????? | | [ # #???????????????????????????????????? | | ########## #???????????????????????????????????? | | #??????# #???????????????????????????????????? | +----------------------------------------------------+ Best States ------------- Heat Dissipation 41 Energy Generation 23 Energy Capacity 300 Matter Stores 400 Matter Capacity 400 Sight Range 16 Terrain Scan Density 10 Armor Coverage 600 Evasion (%) 50 Targeting Accuracy 6 Item Schematics ----------------- None Robot Schematics ------------------ None Fabricated ------------ Nothing Alien Tech Used ----------------- None Achievements -------------- None Challenges ------------ None Game ------ Seed BeamEtherialBooster Manual? 0 Play Time 01:19:33 Cumulative 68.5 hours Start 2024.07.04 @ 22:08:32 End 2024.07.05 @ 00:21:36 Sessions 1 Manual Loads 0 Difficulty Rogue Special Mode None Game No. 70 Rogue 61 Adventurer 9 Explorer 0 Win Type - Total 0 Types 0/0/0/0/0/0/0/0/0 Lore% 26 Gallery% 26 Achievement% 23 Wizard Run 0 Options --------- Layout 1 ASCII 1 Keyboard 0 Movement Arrows Keybinds 0 Fullscreen 2 Font 24/Smallcaps Map View 50x35 Zoom Use 0% Tactical HUD 0 Map Filters NONE Filters NONE Steam 1 RUN: 332097fd-a0cc-4e3b-a3af-0c7bb2d11b52